Cogmind - Beta 9.3 @@@ ROGUE MODE // 2019.12.24 @ 23:29:15 // Winter2019/RPGLIKE Player: K.Ioz Result: Destroyed by G-47 Trooper with Particle Gun Performance ------------- Evolutions (2) 1000 Regions Visited (3) 600 Robots Destroyed (73) 365 Value Destroyed (2100) 2100 Prototype IDs (0) 0 Alien Tech Used (0) 0 Bonus (0) 0 TOTAL SCORE: 4065 Bonus ------- None Cogmind --------- Core Integrity 0/1200 Matter 314/400 Energy 150/150 System Corruption 0% Temperature Cool (346) Movement Treading (160) Location -8/Materials Parts ------- > --- POWER (1) -------- Light Angular Momentum Engine > --- PROPULSION (2) --- Light Treads Improved Treads > --- UTILITY (3) ------ Visual Processing Unit Targeting Computer Hardened Medium Armor Plating > --- WEAPON (2) ------- Heavy Assault Rifle Heavy Assault Rifle > --- INVENTORY (2) ---- Advanced Heat Sink Advanced Terrain Scanner Peak State ------------ > --- POWER ------------ Light Angular Momentum Engine > --- PROPULSION ------- Light Treads Improved Treads > --- UTILITY ---------- Visual Processing Unit Advanced Terrain Scanner Hardened Medium Armor Plating > --- WEAPON ----------- Heavy Assault Rifle Heavy Assault Rifle > --- INVENTORY -------- Improved Ion Engine Advanced Heat Sink [Rating: 20] Favorites ----------- Power Ion Engine Engine Ion Engine Propulsion Improved Treads Treads Improved Treads Utility Visual Processing Unit Device Terrain Scanner Processor Visual Processing Unit Protection Hardened Medium Armor Plating Weapon Heavy Assault Rifle Energy Gun EM Pulse Gun Ballistic Gun Heavy Assault Rifle Build | -11 -10 -9 -8 ------- Run | Scr Mat Mat Mat Slots Evolved 4 | 1 . 1 2 Power . | . . . . Propulsion 1 | . . . 1 Utility 2 | . . 1 1 Weapon 1 | 1 . . . Parts Attached 29 | 4 7 7 11 Power 5 | 1 . 1 3 Engine 5 | 1 . 1 3 Core . | . . . . Reactor . | . . . . Propulsion 3 | 1 . 1 1 Treads 3 | 1 . 1 1 Leg . | . . . . Wheel . | . . . . Hover . | . . . . Flight . | . . . . Utility 13 | . 5 2 6 Device 6 | . 2 1 3 Storage . | . . . . Processor 4 | . 2 1 1 Hackware . | . . . . Protection 3 | . 1 . 2 Artifact . | . . . . Weapon 8 | 2 2 3 1 Energy Gun 1 | 1 . . . Energy Cannon . | . . . . Ballistic Gun 7 | 1 2 3 1 Ballistic Cannon . | . . . . Launcher . | . . . . Special Weapon . | . . . . Impact Weapon . | . . . . Slashing Weapon . | . . . . Piercing Weapon . | . . . . Special Melee Weapon . | . . . . Unidentified Prototypes . | . . . . Parts Lost . | . . . . Power . | . . . . Propulsion . | . . . . Utility . | . . . . Weapon . | . . . . Highest Loss Streak . | . . . . Average Slot Usage (%) 97 | . 99 96 97 Engine 17 | . 20 18 13 Treads 17 | . 20 18 15 Device 7 | . 5 1 15 Processor 15 | . 11 18 13 Protection 4 | . 2 . 9 Ballistic Gun 33 | . 35 37 27 Naked Turns . | . . . . Heaviest Build 24 | 8 9 14 24 Greatest Support 43 | 20 20 23 43 Greatest Overweight (x) 1 | . . . 1 Average Overweight (x) . | . . . . Largest Inventory Capacity 2 | . . . 2 Average Capacity . | . . . 1 Most Carried 2 | . . . 2 Average Carried . | . . . 1 Final Capacity 2 | . . . 2 Final Carried 2 | . . . 2 Class Distribution -------------------- 59% | Mutant 34% | Skirmisher 4% | Scavenger-Skirmisher Dominant Class ---------------- Mutant | -10/Materials Mutant | -9/Materials Skirmisher | -8/Materials Resources | -11 -10 -9 -8 ----------- Run | Scr Mat Mat Mat Matter Collected 1644 | 240 142 441 821 Remotely . | . . . . Salvage Created 2971 | . 421 917 1633 Parts 155 | . 25 50 80 Haulers Intercepted 6 | . 2 2 2 Recyclers Shooed 2 | . 1 1 . Parts Field Recycled . | . . . . Retrieved Matter . | . . . . Parts Self-Destructed . | . . . . Prevented . | . . . . Kills | -11 -10 -9 -8 ------- Run | Scr Mat Mat Mat Combat Hostiles Destroyed 50 | . 7 19 24 Guns 50 | . 7 19 24 Classes Destroyed 10 | . 4 4 2 Worker 2 | . . 1 1 Builder 2 | . . 1 1 Hauler 6 | . 2 2 2 Recycler 3 | . . 1 2 Operator 1 | . . . 1 Watcher 9 | . 3 3 3 Swarmer 10 | . 3 7 . Grunt 31 | . 4 9 18 Sentry 7 | . . 3 4 Hunter 2 | . . . 2 Best Kill Streak 6 | . 3 5 6 Combat Bots Only 4 | . 2 4 4 Max Kills in Single Turn 2 | . 1 2 1 Gunslinging . | . . . . Exploded . | . . . . Melee . | . . . . Uniques/NPCs Destroyed . | . . . . Combat | -11 -10 -9 -8 -------- Run | Scr Mat Mat Mat Damage Taken 3214 | . 300 836 2078 Core 2623 | . 237 695 1691 Absorbed by Shields . | . . . . Redirected to Core 2006 | . 172 470 1364 Core Remaining (%) 65 | 100 60 36 . Volleys Fired 241 | . 42 81 118 Largest 2 | . 2 2 2 Hottest 60 | . 60 46 46 Shots Fired 480 | . 84 162 234 Gun 480 | . 84 162 234 Cannon . | . . . . Launcher . | . . . . Special . | . . . . Kinetic 468 | . 72 162 234 Thermal . | . . . . Explosive . | . . . . Electromagnetic 12 | . 12 . . Robot Hit Streak 30 | . 17 25 30 Robot Miss Streak 4 | . 3 4 2 Penetration Max . | . . . . Secondary Targets 10 | . 1 5 4 Max Gunslinging Chain 1 | . 1 1 1 Shots Hit Robots 371 | . 59 114 198 Core Hits 142 | . 27 39 76 Critical Hits 5 | . . 2 3 Critical Kills 3 | . . 2 1 Critical Parts Destroyed 2 | . . . 2 Melee Attacks . | . . . . Impact . | . . . . Slashing . | . . . . Piercing . | . . . . Sneak Attacks . | . . . . Combat Hostiles . | . . . . Follow-up Attacks . | . . . . Damage Inflicted 4906 | . 558 1494 2854 Guns 4892 | . 558 1489 2845 Cannons . | . . . . Explosions . | . . . . Melee . | . . . . Ramming 14 | . . 5 9 Kinetic 4757 | . 423 1489 2845 Thermal . | . . . . Explosive . | . . . . Electromagnetic 135 | . 135 . . Impact . | . . . . Slashing . | . . . . Piercing . | . . . . Highest Corruption 2 | . . 2 . Average Corruption 2 | . . 2 . Corruption Purged . | . . . . Effects 9 | . . 9 . Message Errors 2 | . . 2 . Heat Flow Errors 2 | . . 2 . Energy Discharges 1 | . . 1 . Data Loss (minor) 2 | . . 2 . Targeting Errors 2 | . . 2 . Overload Shots . | . . . . Overflow Damage . | . . . . Projectiles . | . . . . Explosions . | . . . . Melee . | . . . . Knockbacks . | . . . . Impact . | . . . . Kinetic . | . . . . Secondary . | . . . . Self-Inflicted Damage . | . . . . Shots . | . . . . Rammed 3 | . . 2 1 Targets Rammed 3 | . . 2 1 Kicked . | . . . . Crushed . | . . . . Highest Temperature 337 | . 120 164 337 Average Temperature 44 | . 44 19 52 Received Heat Transfer 1380 | . 108 255 1017 Effects 2 | . . . 2 Interference 2 | . . . 2 Siege Activations . | . . . . Robots Corrupted . | . . . . Combat Hostiles . | . . . . Parts Fried . | . . . . Impact Corruptions . | . . . . Robots Melted . | . . . . Combat Hostiles . | . . . . Parts Melted . | . . . . Heat Transferred . | . . . . Parts Sabotaged . | . . . . Parts Stolen . | . . . . Parts Stripped . | . . . . Power Chain Reactions . | . . . . Missiles Intercepted . | . . . . Alert | -11 -10 -9 -8 ------- Run | Scr Mat Mat Mat Peak Influence 404 | . 138 317 404 Average Influence 124 | . 52 145 148 Maximum Alert Level 2 | . . 1 2 Low Security (%) 76 | 100 100 61 77 Level 1 23 | . . 38 21 Level 2 . | . . . 1 Level 3 . | . . . . Level 4 . | . . . . Level 5 . | . . . . High Security . | . . . . Max Security . | . . . . Squads Dispatched 8 | . 2 1 5 Investigation 1 | . . . 1 Extermination . | . . . . Reinforcement 7 | . 2 1 4 Assault . | . . . . Garrison . | . . . . Intercept . | . . . . Construction Impeded . | . . . . Haulers Reinforced . | . . . . Stealth | -11 -10 -9 -8 --------- Run | Scr Mat Mat Mat Distress Signals 10 | . 3 3 4 Communications Jammed . | . . . . Distress Signals . | . . . . Times Spotted 102 | . 15 33 54 Peak Tracking Total 5 | . 3 5 5 Tactical Retreats 8 | . 1 1 6 Traps | -11 -10 -9 -8 ------- Run | Scr Mat Mat Mat Traps Triggered 1 | . . 1 . Indirectly . | . . . . Trap Hack Attempts . | . . . . Triggered . | . . . . Disarmed 4 | . . 4 . Reprogrammed 1 | . 1 . . Reused . | . . . . Traps Extracted . | . . . . Installed . | . . . . Triggered . | . . . . Machines | -11 -10 -9 -8 ---------- Run | Scr Mat Mat Mat Machines Disabled . | . . . . Max in Single Turn . | . . . . Machines Sabotaged . | . . . . Garrisons Compromised . | . . . . Overloaded Fab Kills . | . . . . Fab Network Shutdowns . | . . . . Hacking | -11 -10 -9 -8 --------- Run | Scr Mat Mat Mat Machines Accessed 15 | . 6 7 2 Terminals 12 | . 5 6 1 Fabricators . | . . . . Repair Stations 1 | . . . 1 Recycling Units 2 | . 1 1 . Scanalyzers . | . . . . Garrison Access . | . . . . Total Hacks 35 | . 15 15 5 Successful 20 | . 10 8 2 Failed 15 | . 5 7 3 Catastrophic 3 | . 1 2 . Database Lockouts . | . . . . Manual 10 | . 3 5 2 Terminals 29 | . 13 14 2 Fabricators . | . . . . Repair Stations 3 | . . . 3 Recycling Units 3 | . 2 1 . Scanalyzers . | . . . . Garrison Access . | . . . . Terminal Hacks 16 | . 8 7 1 Alert Level 2 | . . 2 . Locate Traps 6 | . 3 2 1 Disarm Traps 1 | . . 1 . Reprogram Traps 1 | . 1 . . Patrol Status 1 | . . 1 . Transport Status 1 | . 1 . . Investigation Status 2 | . 1 1 . Assault Status 1 | . 1 . . Registered Prototypes 1 | . 1 . . Fabricator Hacks . | . . . . Repair Station Hacks 1 | . . . 1 Scan Component 1 | . . . 1 Recycling Unit Hacks 3 | . 2 1 . Process 2 | . 1 1 . Report Inventory 1 | . 1 . . Scanalyzer . | . . . . Garrison Access Hacks . | . . . . Unauthorized Hacks . | . . . . Terminals . | . . . . Fabricators . | . . . . Repair Stations . | . . . . Recycling Units . | . . . . Scanalyzers . | . . . . Garrison Access . | . . . . Data Cores Recovered . | . . . . Used . | . . . . Hacking Detections 11 | . 4 5 2 Full Trace Events 1 | . . . 1 Feedback Events . | . . . . Feedback Blocked . | . . . . Robot Schematics Acquired . | . . . . Robots Built . | . . . . Matter . | . . . . Time . | . . . . Total Robot Build Rating . | . . . . Part Schematics Acquired . | . . . . Parts Built . | . . . . Matter . | . . . . Time . | . . . . Total Part Build Rating . | . . . . Parts Repaired . | . . . . Time . | . . . . Parts Recycled . | . . . . Recycled Matter 276 | . 141 135 . Retrieved Matter . | . . . . Retrieved Components . | . . . . Parts Scanalyzed . | . . . . Part Schematics Acquired . | . . . . Parts Damaged . | . . . . Bothacking | -11 -10 -9 -8 ------------ Run | Scr Mat Mat Mat Used RIF Installer . | . . . . Robots Hacked . | . . . . Non-combat . | . . . . Combat . | . . . . Robot Hacks Applied . | . . . . Relay Couplers Released . | . . . . Robots Rewired . | . . . . Allies Hacked . | . . . . Hacks Repelled . | . . . . Allies | -11 -10 -9 -8 -------- Run | Scr Mat Mat Mat Total Allies . | . . . . Largest Group . | . . . . Highest-Rated Group . | . . . . Highest-Rated Ally . | . . . . Total Orders . | . . . . Ally Attacks . | . . . . Total Damage . | . . . . Kills . | . . . . Allies Corrupted . | . . . . Allies Melted . | . . . . Intel | -11 -10 -9 -8 ------- Run | Scr Mat Mat Mat Robot Analysis Total . | . . . . Derelict Logs Recovered . | . . . . Drone Launches . | . . . . Drone Recoveries . | . . . . Exploration | -11 -10 -9 -8 ------------- Run | Scr Mat Mat Mat Turns Passed 5330 | 118 1099 2204 1909 Spaces Moved 1976 | 88 491 828 569 Core 25 | 25 . . . Treads 1951 | 63 491 828 569 Legs . | . . . . Wheels . | . . . . Hover . | . . . . Flight . | . . . . Fastest Speed 50 | 50 160 160 160 Average Speed 160 | 128 160 160 165 Slowest Speed 180 | 160 160 160 180 Overloaded Moves . | . . . . Propulsion Burnouts . | . . . . Robots Hopped . | . . . . Cave-ins Triggered . | . . . . Exploration Rate (%) 39 | 4 72 50 33 Regions Visited 3 Branch Regions . Pre-discovered Areas . | . . . . Known Exits Taken . | . . . . Unknown Exits Taken 3 | 1 1 1 . Scrap Searched . | . . . . Spaces Dug . | . . . . Terrain Destroyed . | . . . . Melee . | . . . . Projectile . | . . . . AOE . | . . . . Actions | -11 -10 -9 -8 --------- Run | Scr Mat Mat Mat Total 3685 | 91 734 1555 1305 Wait 1349 | . 189 608 552 Move 1973 | 87 490 827 569 Hop . | . . . . Pick Up 5 | . . . 5 Fast Attach 24 | 4 7 7 6 Attach 2 | . . . 2 Detach 4 | . 1 1 2 Swap 3 | . . . 3 Drop 18 | . 5 5 8 Fire 241 | . 42 81 118 Melee . | . . . . Ram . | . . . . Kick . | . . . . Crush 3 | . . 2 1 Escape Stasis . | . . . . Rewire . | . . . . Trap . | . . . . Miscellaneous 63 | . . 24 39 Route ------- -11/Scrapyard -10/Materials (discovered 4 exits: *Mat x2 / [*Min x2]) -9/Materials -8/Materials (discovered 1 exit: [Fac]) History --------- Turn | Location | Event 2 | -11/Scrapyard | Upgraded with Weapon slot (x1) 4 | -11/Scrapyard | Discovered new exit (range 15) 119 | -11/Scrapyard | Entered Materials 182 | -10/Materials | Discovered new exit (range 13) 305 | -10/Materials | Build established: Mutant 527 | -10/Materials | Discovered new exit (range 7) 634 | -10/Materials | Discovered new exit (range 19) 1155 | -10/Materials | Discovered new exit (range 19) 1218 | -10/Materials | Entered another Materials area 1220 | -9/Materials | Reached level 2 2002 | -9/Materials | Reached level 3 2137 | -9/Materials | Core integrity fell below 50% 2567 | -9/Materials | Core integrity fell below 20% 2742 | -9/Materials | Reached level 4 2754 | -9/Materials | Upgraded with Utility slot (x1) 3356 | -9/Materials | Discovered new exit (range 17) 3422 | -9/Materials | Entered another Materials area 3423 | -8/Materials | Core integrity fell below 50% 3424 | -8/Materials | Reached level 5 3425 | -8/Materials | Upgraded with Utility slot (x1) 3503 | -8/Materials | Build established: Skirmisher 4423 | -8/Materials | Reached level 6 4949 | -8/Materials | Core integrity fell below 20% 4953 | -8/Materials | Reached level 7 4956 | -8/Materials | Discovered new exit (range 17) 4957 | -8/Materials | Upgraded with Propulsion slot (x1) 5331 | -8/Materials | Destroyed by G-47 Trooper with Particle Gun Last Messages --------------- Acquired 30 matter. R-06 Scavenger collects Imp. Hover Unit. K-01 Serf collects debris. R-06 Scavenger collects Lgt. Deuterium Engine. K-01 Serf collects debris. Dropped Adv. Heat Sink. Connecting with Repair Station... >>Scan(Hvy. Assault Rifle) Scanning Hvy. Assault Rifle... Ready to Repair: Hvy. Assault Rifle Rating: 2 Time: 16 ALERT: Suspicious activity at Repair Station M002. Dispatching Investigation squad. Acquired Adv. Heat Sink. Destroyed Particle Gun. Overheating: System interference. Hvy. Assault Rifle temporarily disabled. Visual Processing Unit temporarily disabled. Map ----- +----------------------------------------------------+ | | | | | | | ???????????????????????????????? | | ???????????????????????????????? | | ????#?#??#?????????????????????? | | ?#???#?##??#?##????????????????? | | ?#??#?###?#?#####?#????????????? | | ######## ? ? ???????????? | | #######? ##### ###?#???????????? | | ######## ##### ##?#??#?????????? | | ####?### ##### #######?#???????? | | ####?### #?### ########????????? | | # "" # ##### ##########??????? | | # "?S # ###?# ? ???????? | | # "" # ######### ? ????? | | # # # # ?????? | | # + + + ????? | | # # # ? ##### ##?????? | | ######## ############# ####???? | | ####### ##### ###?#####??? | | ####### # ? ??? | | ####### # ???? | | ####### #####? # """ ???? | | ########g########? ## """ ??? | | ##### @ #### ## """ ?"?? | | #####"""g""" #### ## ???? | | #####"R """ #### ## ""?? | | #####""" """ #### ## ? ?? | | ##### "" ### ##+######?#? | | ##### """ + ? ?#? | | ##### ] """ ### ? | | ##### """ ### ### ###+#?? | | ##### ########## # | | ###########/########### # """"" | | ########### ########### # """"" | | ########### ########### + """"" | | ###########?### ## # """"" | | # ### ### ## # """"" | | # ### ### """ ## # """"" | | # ### ### """ ## # """"" | | # ### ### """ ## # | | # ### ### ## ####### | | # """ # ###+##### ####### | | # """ !#= ? | | # """ =/% % | | # #! %% | | #* # ###+######+####### | | # ## %## ! = # #### | | ## ####### ^ ## !! # #### | +----------------------------------------------------+ Best States ------------- Heat Dissipation 25 Energy Generation 18 Energy Capacity 265 Matter Stores 400 Matter Capacity 400 Sight Range 23 Robot Scan Range 30 Terrain Scan Range 20 Terrain Scan Density 610 Armor Coverage 225 Propulsion Shielding 33 Evasion (%) 50 Targeting Accuracy 5 Recoil Reduction 2 Offensive Hacking 5 Defensive Hacking 5 Item Schematics ----------------- None Robot Schematics ------------------ None Fabricated ------------ Nothing Alien Tech Used ----------------- None Achievements -------------- Omniscient Cartographer Sniper Challenges ------------ None RPGLIKE | -11 -10 -9 -8 --------- Run | Scr Mat Mat Mat Levels Raised 6 | . . 3 3 XP Earned 12840 | 3000 1105 4010 4725 XP Spent 11760 | 2950 . 4520 4290 Upgrades 47 | 8 . 16 23 Propulsion Slot 1 | . . . 1 Utility Slot 2 | . . 1 1 Weapon Slot 1 | 1 . . . Core Integrity 12 | . . 1 11 Matter Storage 2 | . . . 2 Inventory Capacity 2 | . . . 2 Sight Range 5 | 3 . 2 . Sensor Range 10 | 1 . 9 . Terrain Scan Density 6 | . . 2 4 Ranged Accuracy 4 | 3 . 1 . Hack Attack % 1 | . . . 1 Hack Defense % 1 | . . . 1 Protomatter Created 604 | . 77 174 353 Integrity Restored 1410 | . . 522 888 Core 1410 | . . 522 888 Protomatter Decayed 134 | . 77 . 57 Game ------ Seed ReinforcedHoverProtomatter Manual? 0 Play Time 01:20:30 Cumulative 51.5 hours Start 2019.12.24 @ 21:06:49 End 2019.12.24 @ 23:29:15 Sessions 1 Manual Loads 0 Difficulty Rogue Special Mode Winter2019/RPGLIKE Game No. 49 Rogue 47 Adventurer 0 Explorer 2 Win Type - Total 0 Types 0/0/0/0/0/0/0 Lore% 30 Gallery% 36 Achievement% 31 Wizard Run 0 Options --------- ASCII 1 Keyboard 1 Movement Vi Keybinds 0 Fullscreen 1 Font 18/SmallcapsGlow Map View 76x50 Tactical HUD 0 Map Filters NONE Filters LOW_CONTRAST(47,30,31) Steam 1 RUN: ac0e5c7b-2c48-4b9c-b0ad-717df2266609